bitfinex/quotes_BTCUSD_20250316
["timestamp","ask_amount","ask_price","bid_price","bid_amount"]
[1742137293464,1.23183615,83487.0,83486.0,0.0003386]
[1742137294491,1.02949115,83487.0,83486.0,0.0003386]
[1742137294692,0.68989215,83487.0,83486.0,0.0003386]
[1742137295091,0.59664952,83487.0,83486.0,0.0003386]
[1742137295838,0.59464952,83487.0,83486.0,0.0003386]
[1742137296978,0.5758674,83487.0,83486.0,0.0003386]
[1742137297558,0.5778674,83487.0,83486.0,0.0003386]
[1742137297758,0.5758674,83487.0,83486.0,0.0003386]
[1742137298322,0.69544243,83487.0,83486.0,0.0003386]
[1742137298721,0.7171474,83487.0,83486.0,0.0003386]
[1742137300991,1.4781474,83487.0,83486.0,0.0003386]
[1742137302588,1.3368674,83487.0,83486.0,0.0003386]
[1742137307300,1.3368674,83487.0,83479.0,0.0003386]
[1742137307502,0.239592,83475.0,83469.0,0.239608]
[1742137307775,0.239596,83474.0,83469.0,0.251588]
[1742137307979,0.239603,83472.0,83468.0,0.2519296]
[1742137308209,0.01878128,83473.0,83468.0,0.2519296]
[1742137308401,0.25838028,83473.0,83468.0,0.2519296]
[1742137308606,0.239602,83472.0,83468.0,0.0003386]
[1742137308970,0.23969055,83472.0,83468.0,0.2399496]
[1742137309798,0.251589,83469.0,83468.0,0.0003386]
[1742137311226,0.239606,83471.0,83468.0,0.0003386]
[1742137311458,0.01261386,83472.0,83468.0,0.0123186]
[1742137311693,0.02247725,83469.0,83468.0,0.2519296]
[1742137312103,0.26208625,83469.0,83468.0,0.0003386]
[1742137312451,0.27406625,83469.0,83468.0,0.0003386]
[1742137314940,0.27406625,83469.0,83468.0,0.0002986]
[1742137316749,0.02247725,83469.0,83468.0,0.0002986]
[1742137317242,0.03445725,83469.0,83468.0,0.0002986]
[1742137317447,0.02247725,83469.0,83468.0,0.0002986]
[1742137317647,0.02247725,83469.0,83468.0,0.2399106]
[1742137317827,0.02247725,83469.0,83468.0,0.2518906]
[1742137319075,0.04125886,83469.0,83468.0,0.2518906]
[1742137319450,0.01878161,83469.0,83468.0,0.2518906]
[1742137320051,0.01261386,83472.0,83471.0,0.251584]
[1742137320267,0.01131386,83472.0,83468.0,0.2518906]
[1742137320472,0.011979,83474.0,83468.0,0.0002986]
[1742137320666,0.251585,83471.0,83468.0,0.00070964]
[1742137320875,0.551588,83470.0,83468.0,0.00070964]
[1742137321073,0.239612,83468.0,83466.0,0.0003384]
[1742137321279,0.01198,83467.0,83466.0,0.0003384]
[1742137323179,0.31198,83467.0,83466.0,0.0003384]
[1742137323418,0.33076534,83467.0,83466.0,0.0003384]
[1742137323974,0.01257781,83467.0,83466.0,0.0003384]
[1742137324179,0.02455781,83467.0,83466.0,0.0003384]
[1742137324586,0.251611,83462.0,83461.0,8e-07]
[1742137325792,1.012731,83462.0,83461.0,8e-07]
[1742137326246,0.25164,83452.0,83451.0,0.00013867]
[1742137326635,0.25157316,83461.0,83451.0,0.00013867]
[1742137326840,0.239655,83454.0,83451.0,0.00013867]
[1742137327050,0.011982,83453.0,83451.0,0.00013867]
[1742137327256,0.011982,83452.0,83451.0,0.00013867]
[1742137330491,0.25844191,83454.0,83451.0,0.00013867]
[1742137330690,0.01878691,83454.0,83451.0,0.00013867]
[1742137331276,0.01878691,83454.0,83451.0,0.01212167]
[1742137331500,0.239652,83455.0,83451.0,0.00013867]
[1742137331671,0.251628,83457.0,83452.0,0.239657]
[1742137331893,0.239615,83468.0,83452.0,0.239657]
[1742137331894,0.00041139,83470.0,83461.0,0.011981]
[1742137332180,0.239627,83463.0,83459.0,0.011981]
[1742137332618,0.239632,83462.0,83457.0,0.378724]
[1742137332817,0.011981,83463.0,83458.0,0.239639]
[1742137333355,0.239636,83460.0,83457.0,0.1271]
[1742137333554,0.011982,83458.0,83457.0,0.1271]
[1742137333766,0.25164,83452.0,83448.0,0.0765]
[1742137334527,0.27042617,83452.0,83448.0,0.0765]
[1742137334940,0.27042617,83452.0,83445.0,0.473683]
[1742137334941,0.64779509,83452.0,83445.0,0.4146]
[1742137335275,0.57042617,83452.0,83444.0,0.0003386]
[1742137335679,0.306661,83445.0,83444.0,6e-07]
[1742137335897,0.306661,83445.0,83408.0,0.0765]
[1742137335898,0.551698,83433.0,83408.0,0.0765]
[1742137336307,0.55750599,83433.0,83432.0,6e-07]
[1742137336511,0.55750599,83433.0,83402.0,0.0003388]
[1742137336512,0.55175,83416.0,83402.0,0.0003388]
[1742137336712,0.251788,83403.0,83402.0,0.0003388]
[1742137336894,0.2573875,83403.0,83402.0,0.0003388]
[1742137337096,0.0055995,83403.0,83402.0,0.0123288]
[1742137337298,0.23959216,83420.0,83402.0,0.0123288]
[1742137337299,0.76128,83415.0,83414.0,0.011988]
[1742137337493,0.76692051,83415.0,83410.0,0.239779]
[1742137337760,0.76692051,83415.0,83412.0,0.239773]
[1742137337914,0.76128,83415.0,83414.0,0.011988]
[1742137338113,0.76128,83415.0,83414.0,0.251755]
[1742137338375,0.76691739,83415.0,83414.0,0.251755]
[1742137338562,0.00563739,83415.0,83414.0,0.251755]
[1742137338877,0.011987,83417.0,83412.0,0.251761]
[1742137339107,0.00563739,83415.0,83412.0,0.251761]
[1742137339241,0.00563739,83415.0,83408.0,0.251771]
[1742137339242,0.011988,83414.0,83408.0,0.251771]
[1742137339440,0.011988,83414.0,83402.0,0.25221735]
[1742137339441,0.239788,83407.0,83402.0,0.25221735]
[1742137339669,0.011988,83411.0,83406.0,0.23979]
[1742137340073,0.251765,83411.0,83406.0,0.23979]
[1742137340460,0.251765,83411.0,83405.0,0.011989]
[1742137340664,0.239772,83413.0,83405.0,0.011989]
[1742137340665,0.251743,83419.0,83407.0,0.011989]
[1742137340881,0.011987,83419.0,83413.0,0.011988]
[1742137341083,0.239759,83418.0,83414.0,0.239767]
[1742137341288,0.01879516,83417.0,83416.0,0.011988]
[1742137341606,0.01879516,83417.0,83414.0,0.011988]
[1742137341828,0.011989,83408.0,83400.0,0.05909]
[1742137342031,0.25855416,83417.0,83411.0,0.239776]
[1742137342278,0.239771,83413.0,83406.0,0.011989]
[1742137342479,0.239771,83413.0,83403.0,0.239799]
[1742137342480,0.011985,83433.0,83427.0,0.239729]
[1742137342621,0.392641,83439.0,83428.0,0.011986]
[1742137342839,0.01879287,83432.0,83428.0,0.011986]
[1742137343039,0.01879287,83432.0,83431.0,0.251704]
[1742137343846,0.019204,83432.0,83431.0,0.251704]
[1742137344055,0.020204,83432.0,83431.0,0.251704]
[1742137344290,0.019204,83432.0,83431.0,0.251704]
[1742137344678,0.019204,83432.0,83431.0,0.26724485]
[1742137344880,0.019204,83432.0,83431.0,0.68184485]
[1742137346193,0.019204,83432.0,83431.0,0.68084485]
[1742137346402,0.020204,83432.0,83431.0,0.68384485]
[1742137348699,0.00141113,83432.0,83431.0,0.68384485]
[1742137348921,1.3e-07,83432.0,83431.0,0.98384485]
[1742137349121,1.3e-07,83432.0,83431.0,1.06034485]
[1742137350278,0.0003386,83452.0,83451.0,0.251644]
[1742137350481,0.0003386,83452.0,83451.0,8.855e-05]
[1742137350683,0.011983,83450.0,83443.0,0.251666]
[1742137350883,0.00600427,83452.0,83431.0,0.7931]
[1742137350884,0.251701,83432.0,83431.0,0.002]
[1742137351155,0.239712,83434.0,83431.0,0.0021235]
[1742137351310,0.01767804,83432.0,83431.0,0.0021235]
[1742137351505,0.25739404,83432.0,83431.0,0.0001235]
[1742137352128,0.27618534,83432.0,83431.0,0.0001235]
[1742137353135,0.27614534,83432.0,83431.0,0.0001235]
[1742137353632,0.02444434,83432.0,83431.0,0.0021235]
[1742137353863,0.02444434,83432.0,83431.0,0.0001235]
[1742137354036,0.03642934,83432.0,83431.0,0.0001235]
[1742137354262,0.03642934,83432.0,83431.0,0.0021235]
[1742137354472,0.02444434,83432.0,83431.0,0.0021235]
[1742137354692,0.02444434,83432.0,83431.0,0.0907085]
[1742137355627,0.02444434,83432.0,83431.0,0.15244935]
[1742137355830,0.0187913,83432.0,83431.0,0.15244935]
[1742137356575,0.0187913,83432.0,83431.0,0.1379085]
[1742137356779,0.0187913,83432.0,83431.0,0.55370693]
[1742137356981,0.239663,83451.0,83445.0,0.239678]
[1742137357184,0.239663,83451.0,83443.0,0.251665]
[1742137357185,0.0123206,83452.0,83446.0,0.239675]
[1742137357383,0.0003386,83452.0,83451.0,0.011983]
[1742137358314,0.0003386,83452.0,83451.0,0.010983]
[1742137358889,0.0003386,83452.0,83451.0,0.014983]
[1742137359095,0.0003386,83452.0,83451.0,0.004]
[1742137359663,0.00600788,83452.0,83451.0,0.015983]
[1742137359864,0.01798988,83452.0,83451.0,0.004]
[1742137360204,0.03677649,83452.0,83446.0,0.011983]
[1742137360525,0.03677649,83452.0,83451.0,0.004]
[1742137360687,0.02479449,83452.0,83451.0,0.004]
[1742137360884,0.27643649,83452.0,83447.0,0.251653]
[1742137361418,0.25764988,83452.0,83451.0,0.002]
[1742137361777,0.00600788,83452.0,83451.0,0.090583]
[1742137361977,0.0003386,83452.0,83451.0,0.33144214]
[1742137362179,0.0003386,83452.0,83451.0,0.328244]
[1742137362587,0.0003386,83452.0,83451.0,0.38998485]
[1742137364192,0.0003386,83452.0,83451.0,0.39498485]
[1742137368115,0.0003386,83452.0,83451.0,0.380444]
[1742137369921,0.0003386,83452.0,83451.0,0.39498485]
[1742137371043,6e-07,83452.0,83451.0,0.39498485]
[1742137372271,6e-07,83452.0,83451.0,0.39515405]
[1742137373173,6e-07,83452.0,83451.0,0.39015405]
[1742137373390,6e-07,83452.0,83451.0,0.39615405]
[1742137373918,6e-07,83452.0,83451.0,1.11575405]
[1742137374956,6e-07,83452.0,83451.0,1.16575405]
[1742137375161,0.000339,83469.0,83468.0,0.251592]
[1742137375363,0.000339,83469.0,83468.0,0.94489285]
[1742137375862,0.000339,83469.0,83468.0,1.24489285]
[1742137376291,1e-06,83469.0,83468.0,1.24489285]
[1742137376844,1e-06,83469.0,83468.0,1.24989285]
[1742137377194,1e-06,83469.0,83468.0,1.25589285]
[1742137377564,1e-06,83469.0,83468.0,1.26811251]
[1742137378271,1e-06,83469.0,83468.0,1.26211251]
[1742137378481,1e-06,83469.0,83468.0,1.31211251]
[1742137379312,1e-06,83469.0,83468.0,0.789592]
[1742137379511,1e-06,83469.0,83468.0,0.672192]
[1742137379922,1e-06,83469.0,83468.0,0.666192]
[1742137380345,1e-06,83469.0,83468.0,0.672192]
[1742137380543,1e-06,83469.0,83468.0,0.666192]
[1742137380982,1e-06,83469.0,83468.0,0.672192]
[1742137381968,1e-06,83469.0,83468.0,0.68673285]
[1742137384525,1e-06,83469.0,83468.0,0.68690205]
[1742137385511,1e-06,83469.0,83468.0,0.6723612]
[1742137385708,1e-06,83469.0,83468.0,0.8132412]
[1742137385986,0.02239037,83469.0,83468.0,0.8132412]
[1742137386548,0.02239037,83469.0,83468.0,0.0061692]
[1742137386951,0.02239037,83469.0,83468.0,0.0181492]
[1742137387757,0.02239037,83469.0,83468.0,0.0121492]
[1742137388143,0.02239037,83469.0,83468.0,0.0161492]
[1742137389046,0.02239037,83469.0,83468.0,0.03069005]
[1742137390155,0.04117164,83469.0,83468.0,0.0318879]
[1742137390329,0.04117164,83469.0,83468.0,0.03069005]
[1742137391542,0.02239037,83469.0,83468.0,0.03069005]
[1742137392052,0.000339,83487.0,83486.0,0.251539]
[1742137392281,0.000339,83487.0,83486.0,0.82135985]
[1742137392491,0.000339,83487.0,83486.0,0.666139]
[1742137392742,0.000339,83487.0,83486.0,0.392259]
[1742137392968,0.000339,83487.0,83486.0,0.251539]
[1742137393365,0.000339,83487.0,83486.0,0.252539]
[1742137393570,0.000339,83487.0,83486.0,0.251539]
[1742137393970,0.000339,83487.0,83486.0,0.27207985]
[1742137394349,0.01911495,83487.0,83486.0,0.27207985]
[1742137394557,9e-08,83487.0,83486.0,1.11107985]
[1742137394962,4e-07,83500.0,83499.0,0.330699]
[1742137395186,4.153e-05,83500.0,83499.0,1.25067985]
[1742137395400,9.3e-07,83506.0,83505.0,0.26602185]
[1742137395627,0.0001694,83510.0,83509.0,0.57100985]
[1742137395628,3.3e-07,83510.0,83509.0,0.57100985]
[1742137396153,4.146e-05,83510.0,83509.0,0.57100985]
[1742137396275,4.146e-05,83510.0,83509.0,0.65020985]
[1742137396683,4.146e-05,83510.0,83509.0,1.16000985]
[1742137397129,4.146e-05,83510.0,83509.0,1.16600985]
[1742137397793,0.00011089,83529.0,83528.0,0.251412]
[1742137397999,0.00052226,83529.0,83528.0,0.82115285]
[1742137399831,0.00052226,83529.0,83528.0,0.82715285]
[1742137401245,0.00052226,83529.0,83528.0,0.82699285]
[1742137401441,2.6e-07,83529.0,83528.0,0.90619285]
[1742137401659,2.6e-07,83529.0,83528.0,0.91864308]
[1742137402089,2.6e-07,83529.0,83528.0,0.90619285]
[1742137403258,8.6e-07,83536.0,83535.0,0.551391]
[1742137403461,2e-07,83536.0,83535.0,0.98053185]
[1742137403905,2e-07,83536.0,83535.0,2.48553185]
[1742137404288,2e-07,83536.0,83535.0,2.56617817]
[1742137404507,2e-07,83536.0,83535.0,2.53553185]
[1742137405104,2e-07,83536.0,83535.0,2.54153185]
[1742137405288,2e-07,83536.0,83535.0,2.68181185]
[1742137406100,0.000339,83553.0,83548.0,0.251352]
[1742137406300,0.000339,83553.0,83552.0,0.016968]
[1742137406496,0.000339,83553.0,83552.0,1.12707598]
[1742137406748,0.004608,83568.0,83567.0,0.251294]
[1742137406990,0.00473131,83568.0,83567.0,0.82087465]
[1742137407532,0.00473131,83568.0,83567.0,0.90007465]
[1742137407750,0.00473131,83568.0,83567.0,0.90507465]
[1742137407976,3.1e-07,83568.0,83567.0,1.30027465]
[1742137408337,3.1e-07,83568.0,83567.0,1.30627465]
[1742137409614,3.1e-07,83571.0,83570.0,0.556286]
[1742137410049,3.1e-07,83571.0,83570.0,1.10500168]
[1742137410261,3.1e-07,83571.0,83570.0,1.15500168]
[1742137410771,0.0008,83589.0,83583.0,0.27078785]
[1742137410975,0.0008,83589.0,83583.0,0.82590734]
[1742137411178,4e-07,83584.0,83583.0,0.90880734]
[1742137411384,1e-06,83590.0,83589.0,0.016963]
[1742137411584,2e-07,83594.0,83593.0,0.27075685]
[1742137411816,2e-07,83594.0,83593.0,0.98535634]
[1742137412018,2e-07,83594.0,83593.0,1.23783137]
[1742137413445,2e-07,83594.0,83593.0,2.73783137]
[1742137413622,7e-07,83613.0,83612.0,0.27070085]
[1742137413831,7e-07,83613.0,83612.0,0.82594034]
[1742137414405,7e-07,83613.0,83612.0,1.29551537]
[1742137414796,7e-07,83613.0,83612.0,2.67594034]
[1742137415151,7e-07,83613.0,83612.0,2.68218034]
[1742137415350,7e-07,83613.0,83612.0,2.67618034]
[1742137415937,7e-07,83613.0,83612.0,2.54130034]
[1742137416137,7e-07,83613.0,83612.0,2.68218034]
[1742137416338,7e-07,83613.0,83612.0,1.18218034]
[1742137417006,7e-07,83613.0,83612.0,1.30175537]
[1742137417152,0.002,83644.0,83636.0,0.02649685]
[1742137417347,0.002,83644.0,83636.0,0.82234257]
[1742137417550,0.0008,83669.0,83650.0,0.016954]
[1742137417784,0.0008,83669.0,83650.0,0.68621126]
[1742137418029,0.0008,83669.0,83650.0,0.76791624]
[1742137418267,0.0008,83669.0,83650.0,0.76291624]
[1742137418468,1e-07,83651.0,83650.0,0.76832737]
[1742137418686,2e-07,83655.0,83654.0,0.31927485]
[1742137418885,2e-07,83655.0,83654.0,1.17466524]
[1742137419091,0.011949,83687.0,83680.0,0.01195]
[1742137419294,0.250938,83686.0,83680.0,0.01195]
[1742137419501,0.011949,83684.0,83677.0,0.14104]
[1742137419708,0.011949,83684.0,83675.0,0.41443039]
[1742137419709,0.01195,83676.0,83675.0,0.41443039]
[1742137420198,0.011952,83663.0,83654.0,0.14148]
[1742137420356,0.011952,83667.0,83642.0,0.41443039]
[1742137420357,0.011955,83647.0,83642.0,0.41443039]
[1742137420556,0.239074,83656.0,83649.0,0.011954]
[1742137420760,0.251016,83660.0,83654.0,0.006]
[1742137420967,0.251016,83660.0,83643.0,0.251065]
[1742137420968,0.011953,83658.0,83643.0,0.251065]
[1742137421164,0.011953,83658.0,83650.0,0.251044]
[1742137421165,0.0001689,83651.0,83650.0,0.251044]
[1742137421526,0.011955,83644.0,83634.0,0.239135]
[1742137421790,0.0001689,83651.0,83645.0,0.239105]
[1742137422006,0.0001689,83651.0,83649.0,0.011954]
[1742137422211,0.0001689,83651.0,83650.0,0.011954]
[1742137422415,0.0001689,83651.0,83650.0,0.0276902]
[1742137423443,0.0001689,83651.0,83650.0,0.44212059]
[1742137423652,0.0001689,83651.0,83650.0,0.44592524]
[1742137423861,0.0001689,83651.0,83650.0,0.44092524]
[1742137424075,9e-07,83651.0,83650.0,0.74592524]
[1742137424259,0.238972,83692.0,83684.0,0.25094]
[1742137424506,0.25092,83692.0,83686.0,0.011949]
[1742137424715,0.011949,83687.0,83676.0,0.41442949]
[1742137424897,0.3,83691.0,83676.0,0.41442949]
[1742137424898,0.01195,83678.0,83676.0,0.41442949]
[1742137425102,0.239014,83677.0,83676.0,0.41442949]
[1742137425235,0.250964,83677.0,83676.0,0.41442949]
[1742137425429,0.01195,83677.0,83676.0,0.41442949]
[1742137425674,0.01195,83677.0,83676.0,0.41484062]
[1742137426265,0.03068601,83677.0,83676.0,0.41484062]
[1742137426675,0.239014,83678.0,83676.0,0.41484062]
[1742137426867,0.01195,83680.0,83676.0,0.41484062]
[1742137427134,0.011949,83687.0,83678.0,0.250961]
[1742137427382,0.011949,83686.0,83680.0,0.01195]
[1742137427558,0.250949,83683.0,83676.0,0.41584062]
[1742137427774,0.250964,83677.0,83676.0,0.41584062]
[1742137427973,0.250964,83677.0,83676.0,0.41484062]
[1742137428371,0.550964,83677.0,83676.0,0.00041113]
[1742137428651,0.550964,83677.0,83676.0,0.00441113]
[1742137429672,0.3,83677.0,83676.0,0.00441113]
[1742137429873,0.31195,83677.0,83676.0,0.00041113]
[1742137430299,0.31195,83677.0,83676.0,0.00441113]
[1742137430500,0.3,83677.0,83676.0,0.00041113]
[1742137430707,0.3,83677.0,83676.0,0.00241113]
[1742137431120,0.31195,83677.0,83676.0,0.00241113]
[1742137431332,0.3,83677.0,83676.0,0.00241113]
[1742137431672,0.011949,83683.0,83676.0,0.00241113]
[1742137431673,0.550937,83687.0,83680.0,0.239005]
[1742137431886,0.3,83683.0,83678.0,0.01195]
[1742137432249,0.01195,83677.0,83676.0,0.00241113]
[1742137432439,0.31195,83677.0,83676.0,0.00241113]
[1742137433159,0.31195,83677.0,83676.0,0.00041113]
[1742137433949,0.31195,83677.0,83676.0,0.00441113]
[1742137434152,0.3306867,83677.0,83676.0,0.00441113]
[1742137434332,0.3306867,83677.0,83676.0,0.00074873]
[1742137434538,0.3306867,83677.0,83676.0,0.00274873]
[1742137435852,0.3187367,83677.0,83676.0,0.00274873]
[1742137436066,0.0187367,83677.0,83676.0,0.00270873]
[1742137436981,0.3306867,83677.0,83676.0,0.00270873]
[1742137437465,0.3306867,83677.0,83676.0,0.00070873]
[1742137437921,0.0187367,83677.0,83676.0,0.24272573]
[1742137438120,0.0187367,83677.0,83676.0,0.00370873]
[1742137438324,0.0187367,83677.0,83676.0,0.01565873]
[1742137438544,0.0001688,83678.0,83677.0,0.250964]
[1742137440242,0.0001688,83678.0,83677.0,0.67993434]
[1742137440453,0.0001688,83678.0,83677.0,0.68393434]
[1742137441099,0.0001688,83678.0,83677.0,0.254964]
[1742137441389,0.0001688,83678.0,83677.0,0.250964]
[1742137441535,0.0001688,83678.0,83677.0,0.256964]
[1742137442108,0.0001688,83678.0,83677.0,0.006]
[1742137442691,0.3121188,83678.0,83677.0,0.006]
[1742137442937,0.01195,83677.0,83676.0,0.00070873]
[1742137444119,0.53649,83677.0,83676.0,0.00070873]
[1742137444680,0.53649,83677.0,83676.0,0.00270873]
[1742137444939,0.53649,83677.0,83647.0,0.239099]
[1742137444940,0.239123,83639.0,83634.0,0.239136]
[1742137445118,0.239123,83639.0,83623.0,0.0751]
[1742137445119,0.239141,83633.0,83623.0,0.011958]
[1742137445315,0.011956,83637.0,83632.0,0.011957]
[1742137445523,0.011956,83637.0,83632.0,0.251099]
[1742137445673,0.011956,83637.0,83629.0,0.251108]
[1742137445880,0.239131,83636.0,83631.0,0.251102]
[1742137446247,0.251105,83630.0,83627.0,0.00041137]
[1742137446400,0.251098,83633.0,83627.0,0.23956737]
[1742137446601,0.251098,83633.0,83627.0,0.00041137]
[1742137446602,0.239146,83631.0,83627.0,0.00041137]
[1742137446926,0.3,83632.0,83629.0,0.011957]
[1742137447254,0.3,83632.0,83631.0,0.004]
[1742137447255,0.33070194,83632.0,83631.0,0.004]
[1742137447459,0.56984694,83632.0,83627.0,0.00041137]
[1742137447635,0.33070194,83632.0,83627.0,0.00541137]
[1742137447844,0.011957,83628.0,83627.0,0.00541137]
[1742137448058,0.011957,83628.0,83627.0,0.00041137]
[1742137448475,0.311957,83628.0,83627.0,0.00041137]
[1742137450237,0.311957,83628.0,83627.0,0.00541137]
[1742137450520,0.239152,83629.0,83627.0,0.00541137]
[1742137450521,0.011957,83629.0,83627.0,0.00041137]
[1742137450661,0.311957,83628.0,83627.0,0.00041137]
[1742137451033,0.311957,83628.0,83627.0,0.00341137]
[1742137451234,0.3,83628.0,83627.0,0.00341137]
[1742137451534,0.311957,83628.0,83627.0,0.00341137]
[1742137451742,0.3,83628.0,83627.0,0.00341137]
[1742137452171,0.3,83636.0,83630.0,0.011957]
[1742137452347,0.239142,83632.0,83627.0,0.00341137]
[1742137452576,0.251099,83632.0,83627.0,0.00341137]
[1742137452750,0.239148,83630.0,83627.0,0.00341137]
[1742137452961,0.551111,83628.0,83627.0,0.00041137]
[1742137453338,0.551111,83628.0,83627.0,0.00341137]
[1742137453859,0.551111,83628.0,83627.0,0.00041137]
[1742137454064,0.551111,83628.0,83627.0,0.00241137]
[1742137454288,0.551111,83628.0,83627.0,0.00041137]
[1742137454621,0.551111,83628.0,83627.0,0.00341137]
[1742137454821,0.551111,83628.0,83627.0,0.00041137]
[1742137455341,0.56985932,83628.0,83627.0,0.00041137]
[1742137455746,0.68943435,83628.0,83627.0,0.00041137]
[1742137455986,0.56985932,83628.0,83627.0,0.00041137]
[1742137456418,0.56985932,83628.0,83627.0,0.00341137]
[1742137456869,0.01196,83610.0,83601.0,0.65365749]
[1742137457071,0.251171,83608.0,83601.0,0.25160449]
[1742137457262,0.251171,83608.0,83603.0,0.011961]
[1742137457469,0.251171,83608.0,83602.0,0.011961]
[1742137457668,0.23922,83605.0,83601.0,0.00041249]
[1742137458029,0.3,83611.0,83605.0,0.011961]
[1742137458234,0.3,83611.0,83603.0,0.011961]
[1742137458235,0.01196,83610.0,83604.0,0.011961]
[1742137458472,0.01196,83609.0,83603.0,0.251184]
[1742137458851,0.551165,83611.0,83603.0,0.251184]
[1742137458852,0.3,83611.0,83606.0,0.239217]
[1742137459051,0.3,83611.0,83609.0,0.239207]
[1742137459254,0.3,83617.0,83611.0,0.239202]
[1742137459460,0.3,83617.0,83614.0,0.011959]
[1742137459671,0.3,83617.0,83611.0,0.251162]
[1742137459672,0.311959,83617.0,83611.0,0.251162]
[1742137459873,0.251147,83617.0,83611.0,0.01196]
[1742137460077,0.251147,83617.0,83612.0,0.251157]
[1742137460309,0.01875001,83616.0,83613.0,0.251154]
[1742137460512,0.01875001,83616.0,83613.0,0.011959]
[1742137460865,0.011961,83605.0,83596.0,0.011962]
[1742137461038,0.011961,83605.0,83592.0,0.0003376]
[1742137461039,0.311961,83602.0,83601.0,0.00041249]
[1742137461625,0.3307145,83602.0,83601.0,0.00041249]
[1742137462517,0.0187535,83602.0,83601.0,0.00041249]
[1742137463132,0.0187535,83602.0,83601.0,0.01237349]
[1742137463813,0.0187535,83602.0,83601.0,0.01437349]
[1742137463953,0.25100648,83611.0,83607.0,0.239213]
[1742137464158,0.25100648,83611.0,83606.0,0.01196]
[1742137464360,0.251169,83609.0,83603.0,0.011961]
[1742137464561,0.01196,83607.0,83602.0,0.239228]
[1742137465069,0.251176,83607.0,83602.0,0.239228]
[1742137465270,0.01196,83607.0,83602.0,0.251189]
[1742137465694,0.011961,83602.0,83601.0,0.00041249]
[1742137466097,0.251187,83603.0,83601.0,0.00041249]
[1742137466692,0.011961,83602.0,83601.0,0.00041249]
[1742137467491,0.03648423,83602.0,83601.0,0.00341249]
[1742137467786,0.03648423,83602.0,83601.0,0.00041249]
[1742137468328,0.011961,83602.0,83601.0,0.00341249]
[1742137468470,0.011961,83602.0,83601.0,0.00041249]
[1742137469484,0.239228,83602.0,83601.0,0.00041249]
[1742137469875,0.251189,83602.0,83601.0,0.00075029]
[1742137470061,0.3,83608.0,83601.0,0.00075029]
[1742137470280,0.03646644,83609.0,83601.0,0.00075029]
[1742137470465,0.239225,83604.0,83601.0,0.00075029]
[1742137470711,0.239227,83603.0,83601.0,0.00075029]
[1742137471110,0.011961,83602.0,83601.0,0.00075029]
[1742137471514,0.011961,83602.0,83601.0,0.00175029]
[1742137471940,0.011961,83602.0,83601.0,0.00075029]
[1742137473559,0.011961,83602.0,83601.0,0.00275029]
[1742137473831,0.011961,83602.0,83601.0,0.00075029]
[1742137474038,0.75972,83610.0,83609.0,0.251168]
[1742137474233,0.011959,83616.0,83607.0,0.239214]
[1742137474386,0.011959,83613.0,83607.0,0.251174]
[1742137474587,0.239199,83613.0,83609.0,0.239207]
[1742137474819,0.239204,83611.0,83607.0,0.251174]
[1742137475029,0.251161,83612.0,83607.0,0.251174]
[1742137475428,0.251165,83611.0,83606.0,0.01196]
[1742137475628,0.239211,83608.0,83604.0,0.0815]
[1742137475840,0.011961,83605.0,83601.0,0.00075029]
[1742137476041,0.011961,83602.0,83601.0,0.00075029]
[1742137477715,0.011961,83599.0,83593.0,0.23900229]
[1742137478080,0.239236,83600.0,83595.0,0.251209]
[1742137478286,0.011962,83598.0,83593.0,0.239251]
[1742137478720,0.011961,83600.0,83594.0,0.251211]
[1742137479084,0.011962,83596.0,83595.0,0.003]
[1742137479290,0.02238206,83597.0,83595.0,0.003]
[1742137479492,0.011962,83596.0,83595.0,0.003]
[1742137480568,0.25121,83595.0,83593.0,0.004]
[1742137480776,0.25121,83595.0,83593.0,0.008]
[1742137480994,0.011962,83594.0,83593.0,0.004]
[1742137481150,0.251216,83593.0,83592.0,0.0007503]
[1742137481352,0.26377397,83593.0,83592.0,0.0007503]
[1742137481737,0.56377397,83593.0,83592.0,0.0007503]
[1742137482147,0.60491123,83593.0,83592.0,0.0007503]
[1742137482322,0.58615603,83593.0,83592.0,0.0007503]
[1742137483828,0.58615603,83593.0,83592.0,0.0027503]
[1742137484239,0.58615603,83593.0,83592.0,0.0057503]
[1742137484440,0.58615603,83593.0,83592.0,0.00491581]
[1742137484837,0.3,83581.0,83576.0,0.251267]
[1742137485048,0.30491295,83593.0,83584.0,0.011964]
[1742137485264,0.3,83589.0,83584.0,0.011964]
[1742137485447,0.25124,83585.0,83579.0,0.251256]
[1742137485598,0.011963,83586.0,83581.0,0.251252]
[1742137486166,0.239271,83587.0,83582.0,0.251247]
[1742137486353,0.011963,83587.0,83579.0,0.011964]
[1742137486559,0.239299,83578.0,83572.0,0.011965]
[1742137486757,0.251263,83578.0,83570.0,0.0003378]
[1742137487095,0.011965,83577.0,83576.0,0.00341342]
[1742137487334,0.011965,83577.0,83576.0,0.00741342]
[1742137487540,0.011965,83577.0,83576.0,0.00441342]
[1742137487825,0.011965,83577.0,83576.0,0.00041342]
[1742137487947,0.251263,83578.0,83576.0,0.00441342]
[1742137488149,0.011965,83577.0,83576.0,0.00541342]
[1742137488341,0.03434706,83577.0,83576.0,0.00541342]
[1742137488546,0.02238206,83577.0,83576.0,0.01637842]
[1742137488768,0.02238206,83577.0,83576.0,0.00441342]
[1742137488986,0.02238206,83577.0,83576.0,0.00941342]
[1742137489326,0.02238206,83577.0,83576.0,0.00541342]
[1742137489732,0.02238206,83577.0,83576.0,0.01737842]
[1742137490362,0.02238206,83577.0,83576.0,0.00541342]
[1742137490926,0.02238206,83577.0,83576.0,0.00941342]
[1742137491290,0.02238206,83577.0,83576.0,0.00541342]
[1742137491507,0.02238206,83577.0,83576.0,0.02137842]
[1742137492131,0.011964,83581.0,83576.0,0.02137842]
[1742137492347,0.011964,83581.0,83577.0,0.239298]
[1742137492554,0.251247,83583.0,83578.0,0.251259]
[1742137492749,0.23872555,83586.0,83581.0,0.011964]
[1742137492950,0.23872555,83586.0,83583.0,0.239281]
[1742137493228,0.251236,83587.0,83582.0,0.251248]
[1742137493655,0.239276,83586.0,83582.0,0.251248]
[1742137494463,0.239276,83586.0,83582.0,0.253248]
[1742137494704,0.251231,83589.0,83583.0,0.011964]
[1742137494908,0.251227,83590.0,83585.0,0.251238]